{"text_format":"3","workbook":"xlsx","n_sheets":6,"sheets":["Tableau de bord","Ventes","Revenu","Dépenses","Taxes","Catégories"],"not_rendered":{"images":1,"defined_names":34},"read":"whole","date_system":"1900"}

{"sheet":"Tableau de bord","index":0,"n_rows":20,"n_cols":8,"rows_kept":20,"merged":[[0,2,0,4],[0,6,3,7],[5,1,5,7]]}
[null,"Compte de résultat","Pour [mois ou année] se terminant le [mois-année-jour]"]
[null,"Nom de la société","Exprimé en milliers"]
[null,"Marge brute actuelle  [L/J]",{"$f":"IFERROR(IF(Total_Bénéfice_brut=0,\"-\",Total_Bénéfice_brut/Total_Recettes_Ventes),\"-\")","v":"-"}]
[null,"Bénéfices actuels sur les ventes  [T/J]",{"$f":"IFERROR(IF(Bénéfice_net=0,\"-\",Bénéfice_net/Total_Recettes_Ventes),\"-\")","v":"-"}]
[]
[null,"Ne modifiez pas les catégories dans cette feuille de calcul, car cela pourrait avoir une incidence sur les formules. Utilisez la feuille de calcul Catégorie pour ajouter des catégories et mettre à niveau les feuilles de calcul correspondantes en fonction de vos entrées. Cette feuille de calcul est mise à jour automatiquement."]
[null,"Récapitulatif","Total de la période précédente","Budget total","Total actuel\nPériode","Total de la période actuelle en pourcentage des ventes","Pourcentage total de changement par rapport à la période précédente","Pourcentage total de changement par rapport au budget"]
[null,"Total des recettes de ventes  [J]",{"$f":"SUMIFS(Recettes_de_ventes1[Période précédente],Recettes_de_ventes1[Type de recette],\"Recettes de ventes\")","v":0},{"$f":"SUMIFS(Recettes_de_ventes1[Budget],Recettes_de_ventes1[Type de recette],\"Recettes de ventes\")","v":0},{"$f":"SUMIFS(Recettes_de_ventes1[Période actuelle],Recettes_de_ventes1[Type de recette],\"Recettes de ventes\")","v":0},{"$f":"SUMIFS(Recettes_de_ventes1[Période actuelle en pourcentage des ventes],Recettes_de_ventes1[Type de recette],\"Recettes de ventes\")","v":{"v":0,"d":"0.00%"}},{"$f":"SUMIFS(Recettes_de_ventes1[Pourcentage de changement par rapport à la période précédente],Recettes_de_ventes1[Type de recette],\"Recettes de ventes\")","v":{"v":0,"d":"0.00%"}},{"$f":"SUMIFS(Recettes_de_ventes1[Pourcentage de changement par rapport au budget],Recettes_de_ventes1[Type de recette],\"Recettes de ventes\")","v":{"v":0,"d":"0.00%"}}]
[null,"Coût total des ventes  [K]",{"$f":"SUMIFS(Recettes_de_ventes1[Période précédente],Recettes_de_ventes1[Type de recette],\"Coût des ventes\")","v":0},{"$f":"SUMIFS(Recettes_de_ventes1[Budget],Recettes_de_ventes1[Type de recette],\"Coût des ventes\")","v":0},{"$f":"SUMIFS(Recettes_de_ventes1[Période actuelle],Recettes_de_ventes1[Type de recette],\"Coût des ventes\")","v":0},{"$f":"SUMIFS(Recettes_de_ventes1[Période actuelle en pourcentage des ventes],Recettes_de_ventes1[Type de recette],\"Coût des ventes\")","v":{"v":0,"d":"0.00%"}},{"$f":"SUMIFS(Recettes_de_ventes1[Pourcentage de changement par rapport à la période précédente],Recettes_de_ventes1[Type de recette],\"Coût des ventes\")","v":{"v":0,"d":"0.00%"}},{"$f":"SUMIFS(Recettes_de_ventes1[Pourcentage de changement par rapport au budget],Recettes_de_ventes1[Type de recette],\"Coût des ventes\")","v":{"v":0,"d":"0.00%"}}]
[null,"Total des dépenses de ventes et marketing  [M]",{"$f":"SUMIFS(DépensesD_exploitation[Période précédente],DépensesD_exploitation[Type de dépense],\"Ventes et marketing\")","v":0},{"$f":"SUMIFS(DépensesD_exploitation[Budget],DépensesD_exploitation[Type de dépense],\"Ventes et marketing\")","v":0},{"$f":"SUMIFS(DépensesD_exploitation[Période actuelle],DépensesD_exploitation[Type de dépense],\"Ventes et marketing\")","v":0},{"$f":"SUMIFS(DépensesD_exploitation[Période actuelle en pourcentage des ventes],DépensesD_exploitation[Type de dépense],\"Ventes et marketing\")","v":{"v":0,"d":"0.00%"}},{"$f":"SUMIFS(DépensesD_exploitation[Pourcentage de changement par rapport à la période précédente],DépensesD_exploitation[Type de dépense],\"Ventes et marketing\")","v":{"v":0,"d":"0.00%"}},{"$f":"SUMIFS(DépensesD_exploitation[Pourcentage de changement par rapport au budget],DépensesD_exploitation[Type de dépense],\"Ventes et marketing\")","v":{"v":0,"d":"0.00%"}}]
[null,"Total des dépenses de recherche et développement  [N]",{"$f":"SUMIFS(DépensesD_exploitation[Période précédente],DépensesD_exploitation[Type de dépense],\"Recherche et développement\")","v":0},{"$f":"SUMIFS(DépensesD_exploitation[Budget],DépensesD_exploitation[Type de dépense],\"Recherche et développement\")","v":0},{"$f":"SUMIFS(DépensesD_exploitation[Période actuelle],DépensesD_exploitation[Type de dépense],\"Recherche et développement\")","v":0},{"$f":"SUMIFS(DépensesD_exploitation[Période actuelle en pourcentage des ventes],DépensesD_exploitation[Type de dépense],\"Recherche et développement\")","v":{"v":0,"d":"0.00%"}},{"$f":"SUMIFS(DépensesD_exploitation[Pourcentage de changement par rapport à la période précédente],DépensesD_exploitation[Type de dépense],\"Recherche et développement\")","v":{"v":0,"d":"0.00%"}},{"$f":"SUMIFS(DépensesD_exploitation[Pourcentage de changement par rapport au budget],DépensesD_exploitation[Type de dépense],\"Recherche et développement\")","v":{"v":0,"d":"0.00%"}}]
[null,"Total des frais généraux et d’administration  [O]",{"$f":"SUMIFS(DépensesD_exploitation[Période précédente],DépensesD_exploitation[Type de dépense],\"Frais généraux et d’administration\")","v":0},{"$f":"SUMIFS(DépensesD_exploitation[Budget],DépensesD_exploitation[Type de dépense],\"Frais généraux et d’administration\")","v":0},{"$f":"SUMIFS(DépensesD_exploitation[Période actuelle],DépensesD_exploitation[Type de dépense],\"Frais généraux et d’administration\")","v":0},{"$f":"SUMIFS(DépensesD_exploitation[Période actuelle en pourcentage des ventes],DépensesD_exploitation[Type de dépense],\"Frais généraux et d’administration\")","v":{"v":0,"d":"0.00%"}},{"$f":"SUMIFS(DépensesD_exploitation[Pourcentage de changement par rapport à la période précédente],DépensesD_exploitation[Type de dépense],\"Frais généraux et d’administration\")","v":{"v":0,"d":"0.00%"}},{"$f":"SUMIFS(DépensesD_exploitation[Pourcentage de changement par rapport au budget],DépensesD_exploitation[Type de dépense],\"Frais généraux et d’administration\")","v":{"v":0,"d":"0.00%"}}]
[null,"Total des autres charges d’exploitation [P]",{"$f":"DépensesD_exploitation[[#Totals],[Période précédente]]-SUM(C10:C12)","v":0},{"$f":"DépensesD_exploitation[[#Totals],[Budget]]-SUM(D10:D12)","v":0},{"$f":"DépensesD_exploitation[[#Totals],[Période actuelle]]-SUM(E10:E12)","v":0},{"$f":"DépensesD_exploitation[[#Totals],[Période actuelle en pourcentage des ventes]]-SUM(F10:F12)","v":{"v":0,"d":"0.00%"}},{"$f":"DépensesD_exploitation[[#Totals],[Pourcentage de changement par rapport à la période précédente]]-SUM(G10:G12)","v":{"v":0,"d":"0.00%"}},{"$f":"DépensesD_exploitation[[#Totals],[Pourcentage de changement par rapport au budget]]-SUM(H10:H12)","v":{"v":0,"d":"0.00%"}}]
[null,"Autres revenus  [S]",{"$f":"Revenu[[#Totals],[Période précédente]]","v":0},{"$f":"Revenu[[#Totals],[Budget]]","v":0},{"$f":"Revenu[[#Totals],[Période actuelle]]","v":0},{"$f":"Revenu[[#Totals],[Période actuelle en pourcentage des ventes]]","v":{"v":0,"d":"0.00%"}},{"$f":"Revenu[[#Totals],[Pourcentage de changement par rapport à la période précédente]]","v":{"v":0,"d":"0.00%"}},{"$f":"Revenu[[#Totals],[Pourcentage de changement par rapport au budget]]","v":{"v":0,"d":"0.00%"}}]
[null,"Total des taxes  [T]",{"$f":"Taxes[[#Totals],[Période précédente]]","v":0},{"$f":"Taxes[[#Totals],[Budget]]","v":0},{"$f":"Taxes[[#Totals],[Période actuelle]]","v":0},{"$f":"Taxes[[#Totals],[Période actuelle en pourcentage des ventes]]","v":{"v":0,"d":"0.00%"}},{"$f":"Taxes[[#Totals],[Pourcentage de changement par rapport à la période précédente]]","v":{"v":0,"d":"0.00%"}},{"$f":"Taxes[[#Totals],[Pourcentage de changement par rapport au budget]]","v":{"v":0,"d":"0.00%"}}]
[]
[null,"Marge brute  [L=J-K]",{"$f":"IFERROR(C8-C9,\"-\")","v":0},{"$f":"IFERROR(D8-D9,\"-\")","v":0},{"$f":"IFERROR(Total_Recettes_Ventes-Total_Coût_Ventes,\"-\")","v":0},{"$f":"IFERROR(IF(Total_Recettes_Ventes=0,\"0.00%\",Total_Bénéfice_brut/Total_Recettes_Ventes),\"-\")","v":"0.00%"},{"$f":"IFERROR(IF(C17=Total_Bénéfice_brut,0,IF(Total_Bénéfice_brut>C17,ABS((Total_Bénéfice_brut/C17)-1),IF(AND(Total_Bénéfice_brut<C17,C17<0),-((Total_Bénéfice_brut/C17)-1),(Total_Bénéfice_brut/C17)-1))),\"-\")","v":{"v":0,"d":"0.00%"}},{"$f":"IFERROR(IF(D17=Total_Bénéfice_brut,0,IF(Total_Bénéfice_brut>D17,ABS((Total_Bénéfice_brut/D17)-1),IF(AND(Total_Bénéfice_brut<D17,D17<0),-((Total_Bénéfice_brut/D17)-1),(Total_Bénéfice_brut/D17)-1))),\"-\")","v":{"v":0,"d":"0.00%"}}]
[null,"Total des charges d’exploitation  [Q=M+N+O+P]",{"$f":"IFERROR(C10+C11+C12+C13,\"-\")","v":0},{"$f":"IFERROR(D10+D11+D12+D13,\"-\")","v":0},{"$f":"IFERROR(Total_Ventes_et_Marketing+Total_Recherche_et_Développement+Total_général_et_administratif+Total_Autres_Dépenses,\"-\")","v":0},{"$f":"IFERROR(IF(Total_Recettes_Ventes=0,\"0.00%\",Total_Dépenses_Fonctionnement/Total_Recettes_Ventes),\"-\")","v":"0.00%"},{"$f":"IFERROR(IF(C18=Total_Dépenses_Fonctionnement,0,IF(Total_Dépenses_Fonctionnement>C18,ABS((Total_Dépenses_Fonctionnement/C18)-1),IF(AND(Total_Dépenses_Fonctionnement<C18,C18<0),-((Total_Dépenses_Fonctionnement/C18)-1),(Total_Dépenses_Fonctionnement/C18)-1))),\"-\")","v":{"v":0,"d":"0.00%"}},{"$f":"IFERROR(IF(D18=Total_Dépenses_Fonctionnement,0,IF(Total_Dépenses_Fonctionnement>D18,ABS((Total_Dépenses_Fonctionnement/D18)-1),IF(AND(Total_Dépenses_Fonctionnement<D18,D18<0),-((Total_Dépenses_Fonctionnement/D18)-1),(Total_Dépenses_Fonctionnement/D18)-1))),\"-\")","v":{"v":0,"d":"0.00%"}}]
[null,"Bénéfice d’exploitation  [R=L-Q]",{"$f":"IFERROR(C17-C18,\"-\")","v":0},{"$f":"IFERROR(D17-D18,\"-\")","v":0},{"$f":"IFERROR(Total_Bénéfice_brut-Total_Dépenses_Fonctionnement,\"-\")","v":0},{"$f":"IFERROR(IF(Total_Recettes_Ventes=0,\"0.00%\",Total_Revenus_Opérations/Total_Recettes_Ventes),\"-\")","v":"0.00%"},{"$f":"IFERROR(IF(C19=Total_Revenus_Opérations,0,IF(Total_Revenus_Opérations>C19,ABS((Total_Revenus_Opérations/C19)-1),IF(AND(Total_Revenus_Opérations<C19,C19<0),-((Total_Revenus_Opérations/C19)-1),(Total_Revenus_Opérations/C19)-1))),\"-\")","v":{"v":0,"d":"0.00%"}},{"$f":"IFERROR(IF(D19=Total_Revenus_Opérations,0,IF(Total_Revenus_Opérations>D19,ABS((Total_Revenus_Opérations/D19)-1),IF(AND(Total_Revenus_Opérations<D19,D19<0),-((Total_Revenus_Opérations/D19)-1),(Total_Revenus_Opérations/D19)-1))),\"-\")","v":{"v":0,"d":"0.00%"}}]
[null,"Résultat net  [U=R+S-T]",{"$f":"IFERROR(C19+C14-C15,\"-\")","v":0},{"$f":"IFERROR(D19+D14-D15,\"-\")","v":0},{"$f":"Total_Revenus_Opérations+Total_Autres_Revenus-Total_Taxes","v":0},{"$f":"IFERROR(IF(Total_Recettes_Ventes=0,\"0.00%\",Bénéfice_net/Total_Recettes_Ventes),\"-\")","v":"0.00%"},{"$f":"IFERROR(IF(C20=Bénéfice_net,0,IF(Bénéfice_net>C20,ABS((Bénéfice_net/C20)-1),IF(AND(Bénéfice_net<C20,C20<0),-((Bénéfice_net/C20)-1),(Bénéfice_net/C20)-1))),\"-\")","v":{"v":0,"d":"0.00%"}},{"$f":"IFERROR(IF(D20=Bénéfice_net,0,IF(Bénéfice_net>D20,ABS((Bénéfice_net/D20)-1),IF(AND(Bénéfice_net<D20,D20<0),-((Bénéfice_net/D20)-1),(Bénéfice_net/D20)-1))),\"-\")","v":{"v":0,"d":"0.00%"}}]

{"sheet":"Ventes","index":1,"n_rows":13,"n_cols":9,"rows_kept":13,"merged":[[0,7,2,8]]}
[null,{"$f":"Classeur_Titre","v":"Compte de résultat"}]
[null,{"$f":"Nom_de_la_société","v":"Nom de la société"},"Exprimé en milliers"]
[null,"Recettes de ventes",{"$f":"IFERROR(Recettes_de_ventes,\"-\")","v":0}]
[null,"Type de recette","Description","Période précédente","Budget","Période actuelle","Période actuelle en pourcentage des ventes","Pourcentage de changement par rapport à la période précédente","Pourcentage de changement par rapport au budget"]
[null,"Recettes de ventes","Produit/Service 1",{"$nulls":3},{"$f":"IFERROR(IF(Recettes_de_ventes1[[#Totals],[Période actuelle]]=0,\"-\",Recettes_de_ventes1[[#This Row],[Période actuelle]]/Recettes_de_ventes),\"-\")","v":"-"},{"$f":"IFERROR(IF(Recettes_de_ventes1[[#This Row],[Période précédente]]=Recettes_de_ventes1[[#This Row],[Période actuelle]],0,IF(Recettes_de_ventes1[[#This Row],[Période actuelle]]>Recettes_de_ventes1[[#This Row],[Période précédente]],ABS((Recettes_de_ventes1[[#This Row],[Période actuelle]]/Recettes_de_ventes1[[#This Row],[Période précédente]])-1),IF(AND(Recettes_de_ventes1[[#This Row],[Période actuelle]]<Recettes_de_ventes1[[#This Row],[Période précédente]],Recettes_de_ventes1[[#This Row],[Période précédente]]<0),-((Recettes_de_ventes1[[#This Row],[Période actuelle]]/Recettes_de_ventes1[[#This Row],[Période précédente]])-1),(Recettes_de_ventes1[[#This Row],[Période actuelle]]/Recettes_de_ventes1[[#This Row],[Période précédente]])-1))),\"-\")","v":{"v":0,"d":"0.00%"}},{"$f":"IFERROR(IF(Recettes_de_ventes1[[#This Row],[Budget]]=Recettes_de_ventes1[[#This Row],[Période actuelle]],0,IF(Recettes_de_ventes1[[#This Row],[Période actuelle]]>Recettes_de_ventes1[[#This Row],[Budget]],ABS((Recettes_de_ventes1[[#This Row],[Période actuelle]]/Recettes_de_ventes1[[#This Row],[Budget]])-1),IF(AND(Recettes_de_ventes1[[#This Row],[Période actuelle]]<Recettes_de_ventes1[[#This Row],[Budget]],Recettes_de_ventes1[[#This Row],[Budget]]<0),-((Recettes_de_ventes1[[#This Row],[Période actuelle]]/Recettes_de_ventes1[[#This Row],[Budget]])-1),(Recettes_de_ventes1[[#This Row],[Période actuelle]]/Recettes_de_ventes1[[#This Row],[Budget]])-1))),\"-\")","v":{"v":0,"d":"0.00%"}}]
[null,"Recettes de ventes","Produit/Service 2",{"$nulls":3},{"$f":"IFERROR(IF(Recettes_de_ventes1[[#Totals],[Période actuelle]]=0,\"-\",Recettes_de_ventes1[[#This Row],[Période actuelle]]/Recettes_de_ventes),\"-\")","v":"-"},{"$f":"IFERROR(IF(Recettes_de_ventes1[[#This Row],[Période précédente]]=Recettes_de_ventes1[[#This Row],[Période actuelle]],0,IF(Recettes_de_ventes1[[#This Row],[Période actuelle]]>Recettes_de_ventes1[[#This Row],[Période précédente]],ABS((Recettes_de_ventes1[[#This Row],[Période actuelle]]/Recettes_de_ventes1[[#This Row],[Période précédente]])-1),IF(AND(Recettes_de_ventes1[[#This Row],[Période actuelle]]<Recettes_de_ventes1[[#This Row],[Période précédente]],Recettes_de_ventes1[[#This Row],[Période précédente]]<0),-((Recettes_de_ventes1[[#This Row],[Période actuelle]]/Recettes_de_ventes1[[#This Row],[Période précédente]])-1),(Recettes_de_ventes1[[#This Row],[Période actuelle]]/Recettes_de_ventes1[[#This Row],[Période précédente]])-1))),\"-\")","v":{"v":0,"d":"0.00%"}},{"$f":"IFERROR(IF(Recettes_de_ventes1[[#This Row],[Budget]]=Recettes_de_ventes1[[#This Row],[Période actuelle]],0,IF(Recettes_de_ventes1[[#This Row],[Période actuelle]]>Recettes_de_ventes1[[#This Row],[Budget]],ABS((Recettes_de_ventes1[[#This Row],[Période actuelle]]/Recettes_de_ventes1[[#This Row],[Budget]])-1),IF(AND(Recettes_de_ventes1[[#This Row],[Période actuelle]]<Recettes_de_ventes1[[#This Row],[Budget]],Recettes_de_ventes1[[#This Row],[Budget]]<0),-((Recettes_de_ventes1[[#This Row],[Période actuelle]]/Recettes_de_ventes1[[#This Row],[Budget]])-1),(Recettes_de_ventes1[[#This Row],[Période actuelle]]/Recettes_de_ventes1[[#This Row],[Budget]])-1))),\"-\")","v":{"v":0,"d":"0.00%"}}]
[null,"Recettes de ventes","Produit/Service 3",{"$nulls":3},{"$f":"IFERROR(IF(Recettes_de_ventes1[[#Totals],[Période actuelle]]=0,\"-\",Recettes_de_ventes1[[#This Row],[Période actuelle]]/Recettes_de_ventes),\"-\")","v":"-"},{"$f":"IFERROR(IF(Recettes_de_ventes1[[#This Row],[Période précédente]]=Recettes_de_ventes1[[#This Row],[Période actuelle]],0,IF(Recettes_de_ventes1[[#This Row],[Période actuelle]]>Recettes_de_ventes1[[#This Row],[Période précédente]],ABS((Recettes_de_ventes1[[#This Row],[Période actuelle]]/Recettes_de_ventes1[[#This Row],[Période précédente]])-1),IF(AND(Recettes_de_ventes1[[#This Row],[Période actuelle]]<Recettes_de_ventes1[[#This Row],[Période précédente]],Recettes_de_ventes1[[#This Row],[Période précédente]]<0),-((Recettes_de_ventes1[[#This Row],[Période actuelle]]/Recettes_de_ventes1[[#This Row],[Période précédente]])-1),(Recettes_de_ventes1[[#This Row],[Période actuelle]]/Recettes_de_ventes1[[#This Row],[Période précédente]])-1))),\"-\")","v":{"v":0,"d":"0.00%"}},{"$f":"IFERROR(IF(Recettes_de_ventes1[[#This Row],[Budget]]=Recettes_de_ventes1[[#This Row],[Période actuelle]],0,IF(Recettes_de_ventes1[[#This Row],[Période actuelle]]>Recettes_de_ventes1[[#This Row],[Budget]],ABS((Recettes_de_ventes1[[#This Row],[Période actuelle]]/Recettes_de_ventes1[[#This Row],[Budget]])-1),IF(AND(Recettes_de_ventes1[[#This Row],[Période actuelle]]<Recettes_de_ventes1[[#This Row],[Budget]],Recettes_de_ventes1[[#This Row],[Budget]]<0),-((Recettes_de_ventes1[[#This Row],[Période actuelle]]/Recettes_de_ventes1[[#This Row],[Budget]])-1),(Recettes_de_ventes1[[#This Row],[Période actuelle]]/Recettes_de_ventes1[[#This Row],[Budget]])-1))),\"-\")","v":{"v":0,"d":"0.00%"}}]
[null,"Recettes de ventes","Produit/Service 4",{"$nulls":3},{"$f":"IFERROR(IF(Recettes_de_ventes1[[#Totals],[Période actuelle]]=0,\"-\",Recettes_de_ventes1[[#This Row],[Période actuelle]]/Recettes_de_ventes),\"-\")","v":"-"},{"$f":"IFERROR(IF(Recettes_de_ventes1[[#This Row],[Période précédente]]=Recettes_de_ventes1[[#This Row],[Période actuelle]],0,IF(Recettes_de_ventes1[[#This Row],[Période actuelle]]>Recettes_de_ventes1[[#This Row],[Période précédente]],ABS((Recettes_de_ventes1[[#This Row],[Période actuelle]]/Recettes_de_ventes1[[#This Row],[Période précédente]])-1),IF(AND(Recettes_de_ventes1[[#This Row],[Période actuelle]]<Recettes_de_ventes1[[#This Row],[Période précédente]],Recettes_de_ventes1[[#This Row],[Période précédente]]<0),-((Recettes_de_ventes1[[#This Row],[Période actuelle]]/Recettes_de_ventes1[[#This Row],[Période précédente]])-1),(Recettes_de_ventes1[[#This Row],[Période actuelle]]/Recettes_de_ventes1[[#This Row],[Période précédente]])-1))),\"-\")","v":{"v":0,"d":"0.00%"}},{"$f":"IFERROR(IF(Recettes_de_ventes1[[#This Row],[Budget]]=Recettes_de_ventes1[[#This Row],[Période actuelle]],0,IF(Recettes_de_ventes1[[#This Row],[Période actuelle]]>Recettes_de_ventes1[[#This Row],[Budget]],ABS((Recettes_de_ventes1[[#This Row],[Période actuelle]]/Recettes_de_ventes1[[#This Row],[Budget]])-1),IF(AND(Recettes_de_ventes1[[#This Row],[Période actuelle]]<Recettes_de_ventes1[[#This Row],[Budget]],Recettes_de_ventes1[[#This Row],[Budget]]<0),-((Recettes_de_ventes1[[#This Row],[Période actuelle]]/Recettes_de_ventes1[[#This Row],[Budget]])-1),(Recettes_de_ventes1[[#This Row],[Période actuelle]]/Recettes_de_ventes1[[#This Row],[Budget]])-1))),\"-\")","v":{"v":0,"d":"0.00%"}}]
[null,"Coût des ventes","Produit/Service 1",{"$nulls":3},{"$f":"IFERROR(IF(Recettes_de_ventes1[[#Totals],[Période actuelle]]=0,\"-\",Recettes_de_ventes1[[#This Row],[Période actuelle]]/Recettes_de_ventes),\"-\")","v":"-"},{"$f":"IFERROR(IF(Recettes_de_ventes1[[#This Row],[Période précédente]]=Recettes_de_ventes1[[#This Row],[Période actuelle]],0,IF(Recettes_de_ventes1[[#This Row],[Période actuelle]]>Recettes_de_ventes1[[#This Row],[Période précédente]],ABS((Recettes_de_ventes1[[#This Row],[Période actuelle]]/Recettes_de_ventes1[[#This Row],[Période précédente]])-1),IF(AND(Recettes_de_ventes1[[#This Row],[Période actuelle]]<Recettes_de_ventes1[[#This Row],[Période précédente]],Recettes_de_ventes1[[#This Row],[Période précédente]]<0),-((Recettes_de_ventes1[[#This Row],[Période actuelle]]/Recettes_de_ventes1[[#This Row],[Période précédente]])-1),(Recettes_de_ventes1[[#This Row],[Période actuelle]]/Recettes_de_ventes1[[#This Row],[Période précédente]])-1))),\"-\")","v":{"v":0,"d":"0.00%"}},{"$f":"IFERROR(IF(Recettes_de_ventes1[[#This Row],[Budget]]=Recettes_de_ventes1[[#This Row],[Période actuelle]],0,IF(Recettes_de_ventes1[[#This Row],[Période actuelle]]>Recettes_de_ventes1[[#This Row],[Budget]],ABS((Recettes_de_ventes1[[#This Row],[Période actuelle]]/Recettes_de_ventes1[[#This Row],[Budget]])-1),IF(AND(Recettes_de_ventes1[[#This Row],[Période actuelle]]<Recettes_de_ventes1[[#This Row],[Budget]],Recettes_de_ventes1[[#This Row],[Budget]]<0),-((Recettes_de_ventes1[[#This Row],[Période actuelle]]/Recettes_de_ventes1[[#This Row],[Budget]])-1),(Recettes_de_ventes1[[#This Row],[Période actuelle]]/Recettes_de_ventes1[[#This Row],[Budget]])-1))),\"-\")","v":{"v":0,"d":"0.00%"}}]
[null,"Coût des ventes","Produit/Service 2",{"$nulls":3},{"$f":"IFERROR(IF(Recettes_de_ventes1[[#Totals],[Période actuelle]]=0,\"-\",Recettes_de_ventes1[[#This Row],[Période actuelle]]/Recettes_de_ventes),\"-\")","v":"-"},{"$f":"IFERROR(IF(Recettes_de_ventes1[[#This Row],[Période précédente]]=Recettes_de_ventes1[[#This Row],[Période actuelle]],0,IF(Recettes_de_ventes1[[#This Row],[Période actuelle]]>Recettes_de_ventes1[[#This Row],[Période précédente]],ABS((Recettes_de_ventes1[[#This Row],[Période actuelle]]/Recettes_de_ventes1[[#This Row],[Période précédente]])-1),IF(AND(Recettes_de_ventes1[[#This Row],[Période actuelle]]<Recettes_de_ventes1[[#This Row],[Période précédente]],Recettes_de_ventes1[[#This Row],[Période précédente]]<0),-((Recettes_de_ventes1[[#This Row],[Période actuelle]]/Recettes_de_ventes1[[#This Row],[Période précédente]])-1),(Recettes_de_ventes1[[#This Row],[Période actuelle]]/Recettes_de_ventes1[[#This Row],[Période précédente]])-1))),\"-\")","v":{"v":0,"d":"0.00%"}},{"$f":"IFERROR(IF(Recettes_de_ventes1[[#This Row],[Budget]]=Recettes_de_ventes1[[#This Row],[Période actuelle]],0,IF(Recettes_de_ventes1[[#This Row],[Période actuelle]]>Recettes_de_ventes1[[#This Row],[Budget]],ABS((Recettes_de_ventes1[[#This Row],[Période actuelle]]/Recettes_de_ventes1[[#This Row],[Budget]])-1),IF(AND(Recettes_de_ventes1[[#This Row],[Période actuelle]]<Recettes_de_ventes1[[#This Row],[Budget]],Recettes_de_ventes1[[#This Row],[Budget]]<0),-((Recettes_de_ventes1[[#This Row],[Période actuelle]]/Recettes_de_ventes1[[#This Row],[Budget]])-1),(Recettes_de_ventes1[[#This Row],[Période actuelle]]/Recettes_de_ventes1[[#This Row],[Budget]])-1))),\"-\")","v":{"v":0,"d":"0.00%"}}]
[null,"Coût des ventes","Produit/Service 3",{"$nulls":3},{"$f":"IFERROR(IF(Recettes_de_ventes1[[#Totals],[Période actuelle]]=0,\"-\",Recettes_de_ventes1[[#This Row],[Période actuelle]]/Recettes_de_ventes),\"-\")","v":"-"},{"$f":"IFERROR(IF(Recettes_de_ventes1[[#This Row],[Période précédente]]=Recettes_de_ventes1[[#This Row],[Période actuelle]],0,IF(Recettes_de_ventes1[[#This Row],[Période actuelle]]>Recettes_de_ventes1[[#This Row],[Période précédente]],ABS((Recettes_de_ventes1[[#This Row],[Période actuelle]]/Recettes_de_ventes1[[#This Row],[Période précédente]])-1),IF(AND(Recettes_de_ventes1[[#This Row],[Période actuelle]]<Recettes_de_ventes1[[#This Row],[Période précédente]],Recettes_de_ventes1[[#This Row],[Période précédente]]<0),-((Recettes_de_ventes1[[#This Row],[Période actuelle]]/Recettes_de_ventes1[[#This Row],[Période précédente]])-1),(Recettes_de_ventes1[[#This Row],[Période actuelle]]/Recettes_de_ventes1[[#This Row],[Période précédente]])-1))),\"-\")","v":{"v":0,"d":"0.00%"}},{"$f":"IFERROR(IF(Recettes_de_ventes1[[#This Row],[Budget]]=Recettes_de_ventes1[[#This Row],[Période actuelle]],0,IF(Recettes_de_ventes1[[#This Row],[Période actuelle]]>Recettes_de_ventes1[[#This Row],[Budget]],ABS((Recettes_de_ventes1[[#This Row],[Période actuelle]]/Recettes_de_ventes1[[#This Row],[Budget]])-1),IF(AND(Recettes_de_ventes1[[#This Row],[Période actuelle]]<Recettes_de_ventes1[[#This Row],[Budget]],Recettes_de_ventes1[[#This Row],[Budget]]<0),-((Recettes_de_ventes1[[#This Row],[Période actuelle]]/Recettes_de_ventes1[[#This Row],[Budget]])-1),(Recettes_de_ventes1[[#This Row],[Période actuelle]]/Recettes_de_ventes1[[#This Row],[Budget]])-1))),\"-\")","v":{"v":0,"d":"0.00%"}}]
[null,"Coût des ventes","Produit/Service 4",{"$nulls":3},{"$f":"IFERROR(IF(Recettes_de_ventes1[[#Totals],[Période actuelle]]=0,\"-\",Recettes_de_ventes1[[#This Row],[Période actuelle]]/Recettes_de_ventes),\"-\")","v":"-"},{"$f":"IFERROR(IF(Recettes_de_ventes1[[#This Row],[Période précédente]]=Recettes_de_ventes1[[#This Row],[Période actuelle]],0,IF(Recettes_de_ventes1[[#This Row],[Période actuelle]]>Recettes_de_ventes1[[#This Row],[Période précédente]],ABS((Recettes_de_ventes1[[#This Row],[Période actuelle]]/Recettes_de_ventes1[[#This Row],[Période précédente]])-1),IF(AND(Recettes_de_ventes1[[#This Row],[Période actuelle]]<Recettes_de_ventes1[[#This Row],[Période précédente]],Recettes_de_ventes1[[#This Row],[Période précédente]]<0),-((Recettes_de_ventes1[[#This Row],[Période actuelle]]/Recettes_de_ventes1[[#This Row],[Période précédente]])-1),(Recettes_de_ventes1[[#This Row],[Période actuelle]]/Recettes_de_ventes1[[#This Row],[Période précédente]])-1))),\"-\")","v":{"v":0,"d":"0.00%"}},{"$f":"IFERROR(IF(Recettes_de_ventes1[[#This Row],[Budget]]=Recettes_de_ventes1[[#This Row],[Période actuelle]],0,IF(Recettes_de_ventes1[[#This Row],[Période actuelle]]>Recettes_de_ventes1[[#This Row],[Budget]],ABS((Recettes_de_ventes1[[#This Row],[Période actuelle]]/Recettes_de_ventes1[[#This Row],[Budget]])-1),IF(AND(Recettes_de_ventes1[[#This Row],[Période actuelle]]<Recettes_de_ventes1[[#This Row],[Budget]],Recettes_de_ventes1[[#This Row],[Budget]]<0),-((Recettes_de_ventes1[[#This Row],[Période actuelle]]/Recettes_de_ventes1[[#This Row],[Budget]])-1),(Recettes_de_ventes1[[#This Row],[Période actuelle]]/Recettes_de_ventes1[[#This Row],[Budget]])-1))),\"-\")","v":{"v":0,"d":"0.00%"}}]
[null,"Total des recettes de ventes",null,{"$f":"SUBTOTAL(109,Recettes_de_ventes1[Période précédente])","v":0},{"$f":"SUBTOTAL(109,Recettes_de_ventes1[Budget])","v":0},{"$f":"SUBTOTAL(109,Recettes_de_ventes1[Période actuelle])","v":0},{"$f":"SUBTOTAL(109,Recettes_de_ventes1[Période actuelle en pourcentage des ventes])","v":{"v":0,"d":"0.00%"}},{"$f":"SUBTOTAL(109,Recettes_de_ventes1[Pourcentage de changement par rapport à la période précédente])","v":{"v":0,"d":"0.00%"}},{"$f":"SUBTOTAL(109,Recettes_de_ventes1[Pourcentage de changement par rapport au budget])","v":{"v":0,"d":"0.00%"}}]

{"sheet":"Revenu","index":2,"n_rows":7,"n_cols":9,"rows_kept":7,"merged":[[0,7,2,8]]}
[null,{"$f":"Classeur_Titre","v":"Compte de résultat"}]
[null,{"$f":"Nom_de_la_société","v":"Nom de la société"},"Exprimé en milliers"]
[null,"Revenu",{"$f":"IFERROR(Revenu[[#Totals],[Période actuelle]],\"-\")","v":0}]
[null,"Type de revenu","Description","Période précédente","Budget","Période actuelle","Période actuelle en pourcentage des ventes","Pourcentage de changement par rapport à la période précédente","Pourcentage de changement par rapport au budget"]
[null,"Revenu","Autre revenu",{"$nulls":3},{"$f":"IFERROR(IF(Recettes_de_ventes=0,\"-\",Revenu[[#This Row],[Période actuelle]]/Recettes_de_ventes),\"-\")","v":"-"},{"$f":"IFERROR(IF(Revenu[[#This Row],[Période précédente]]=Revenu[[#This Row],[Période actuelle]],0,IF(Revenu[[#This Row],[Période actuelle]]>Revenu[[#This Row],[Période précédente]],ABS((Revenu[[#This Row],[Période actuelle]]/Revenu[[#This Row],[Période précédente]])-1),IF(AND(Revenu[[#This Row],[Période actuelle]]<Revenu[[#This Row],[Période précédente]],Revenu[[#This Row],[Période précédente]]<0),-((Revenu[[#This Row],[Période actuelle]]/Revenu[[#This Row],[Période précédente]])-1),(Revenu[[#This Row],[Période actuelle]]/Revenu[[#This Row],[Période précédente]])-1))),\"-\")","v":{"v":0,"d":"0.00%"}},{"$f":"IFERROR(IF(Revenu[[#This Row],[Budget]]=Revenu[[#This Row],[Période actuelle]],0,IF(Revenu[[#This Row],[Période actuelle]]>Revenu[[#This Row],[Budget]],ABS((Revenu[[#This Row],[Période actuelle]]/Revenu[[#This Row],[Budget]])-1),IF(AND(Revenu[[#This Row],[Période actuelle]]<Revenu[[#This Row],[Budget]],Revenu[[#This Row],[Budget]]<0),-((Revenu[[#This Row],[Période actuelle]]/Revenu[[#This Row],[Budget]])-1),(Revenu[[#This Row],[Période actuelle]]/Revenu[[#This Row],[Budget]])-1))),\"-\")","v":{"v":0,"d":"0.00%"}}]
[{"$nulls":6},{"$f":"IFERROR(IF(Recettes_de_ventes=0,\"-\",Revenu[[#This Row],[Période actuelle]]/Recettes_de_ventes),\"-\")","v":"-"},{"$f":"IFERROR(IF(Revenu[[#This Row],[Période précédente]]=Revenu[[#This Row],[Période actuelle]],0,IF(Revenu[[#This Row],[Période actuelle]]>Revenu[[#This Row],[Période précédente]],ABS((Revenu[[#This Row],[Période actuelle]]/Revenu[[#This Row],[Période précédente]])-1),IF(AND(Revenu[[#This Row],[Période actuelle]]<Revenu[[#This Row],[Période précédente]],Revenu[[#This Row],[Période précédente]]<0),-((Revenu[[#This Row],[Période actuelle]]/Revenu[[#This Row],[Période précédente]])-1),(Revenu[[#This Row],[Période actuelle]]/Revenu[[#This Row],[Période précédente]])-1))),\"-\")","v":{"v":0,"d":"0.00%"}},{"$f":"IFERROR(IF(Revenu[[#This Row],[Budget]]=Revenu[[#This Row],[Période actuelle]],0,IF(Revenu[[#This Row],[Période actuelle]]>Revenu[[#This Row],[Budget]],ABS((Revenu[[#This Row],[Période actuelle]]/Revenu[[#This Row],[Budget]])-1),IF(AND(Revenu[[#This Row],[Période actuelle]]<Revenu[[#This Row],[Budget]],Revenu[[#This Row],[Budget]]<0),-((Revenu[[#This Row],[Période actuelle]]/Revenu[[#This Row],[Budget]])-1),(Revenu[[#This Row],[Période actuelle]]/Revenu[[#This Row],[Budget]])-1))),\"-\")","v":{"v":0,"d":"0.00%"}}]
[null,"Total des revenus de ventes",null,{"$f":"SUBTOTAL(109,Revenu[Période précédente])","v":0},{"$f":"SUBTOTAL(109,Revenu[Budget])","v":0},{"$f":"SUBTOTAL(109,Revenu[Période actuelle])","v":0},{"$f":"SUBTOTAL(109,Revenu[Période actuelle en pourcentage des ventes])","v":{"v":0,"d":"0.00%"}},{"$f":"SUBTOTAL(109,Revenu[Pourcentage de changement par rapport à la période précédente])","v":{"v":0,"d":"0.00%"}},{"$f":"SUBTOTAL(109,Revenu[Pourcentage de changement par rapport au budget])","v":{"v":0,"d":"0.00%"}}]

{"sheet":"Dépenses","index":3,"n_rows":25,"n_cols":9,"rows_kept":25,"merged":[[0,7,2,8]]}
[null,{"$f":"Classeur_Titre","v":"Compte de résultat"}]
[null,{"$f":"Nom_de_la_société","v":"Nom de la société"},"Exprimé en milliers"]
[null,"Charges d’exploitation",0]
[null,"Type de dépense","Description","Période précédente","Budget","Période actuelle","Période actuelle en pourcentage des ventes","Pourcentage de changement par rapport à la période précédente","Pourcentage de changement par rapport au budget"]
[null,"Ventes et marketing","Publicité",{"$nulls":3},{"$f":"IFERROR(IF(Recettes_de_ventes=0,\"-\",DépensesD_exploitation[[#This Row],[Période actuelle]]/Recettes_de_ventes),\"-\")","v":"-"},{"$f":"IFERROR(IF(DépensesD_exploitation[[#This Row],[Période précédente]]=DépensesD_exploitation[[#This Row],[Période actuelle]],0,IF(DépensesD_exploitation[[#This Row],[Période actuelle]]>DépensesD_exploitation[[#This Row],[Période précédente]],ABS((DépensesD_exploitation[[#This Row],[Période actuelle]]/DépensesD_exploitation[[#This Row],[Période précédente]])-1),IF(AND(DépensesD_exploitation[[#This Row],[Période actuelle]]<DépensesD_exploitation[[#This Row],[Période précédente]],DépensesD_exploitation[[#This Row],[Période précédente]]<0),-((DépensesD_exploitation[[#This Row],[Période actuelle]]/DépensesD_exploitation[[#This Row],[Période précédente]])-1),(DépensesD_exploitation[[#This Row],[Période actuelle]]/DépensesD_exploitation[[#This Row],[Période précédente]])-1))),\"-\")","v":{"v":0,"d":"0.00%"}},{"$f":"IFERROR(IF(DépensesD_exploitation[[#This Row],[Budget]]=DépensesD_exploitation[[#This Row],[Période actuelle]],0,IF(DépensesD_exploitation[[#This Row],[Période actuelle]]>DépensesD_exploitation[[#This Row],[Budget]],ABS((DépensesD_exploitation[[#This Row],[Période actuelle]]/DépensesD_exploitation[[#This Row],[Budget]])-1),IF(AND(DépensesD_exploitation[[#This Row],[Période actuelle]]<DépensesD_exploitation[[#This Row],[Budget]],DépensesD_exploitation[[#This Row],[Budget]]<0),-((DépensesD_exploitation[[#This Row],[Période actuelle]]/DépensesD_exploitation[[#This Row],[Budget]])-1),(DépensesD_exploitation[[#This Row],[Période actuelle]]/DépensesD_exploitation[[#This Row],[Budget]])-1))),\"-\")","v":{"v":0,"d":"0.00%"}}]
[null,"Ventes et marketing","Marketing direct",{"$nulls":3},{"$f":"IFERROR(IF(Recettes_de_ventes=0,\"-\",DépensesD_exploitation[[#This Row],[Période actuelle]]/Recettes_de_ventes),\"-\")","v":"-"},{"$f":"IFERROR(IF(DépensesD_exploitation[[#This Row],[Période précédente]]=DépensesD_exploitation[[#This Row],[Période actuelle]],0,IF(DépensesD_exploitation[[#This Row],[Période actuelle]]>DépensesD_exploitation[[#This Row],[Période précédente]],ABS((DépensesD_exploitation[[#This Row],[Période actuelle]]/DépensesD_exploitation[[#This Row],[Période précédente]])-1),IF(AND(DépensesD_exploitation[[#This Row],[Période actuelle]]<DépensesD_exploitation[[#This Row],[Période précédente]],DépensesD_exploitation[[#This Row],[Période précédente]]<0),-((DépensesD_exploitation[[#This Row],[Période actuelle]]/DépensesD_exploitation[[#This Row],[Période précédente]])-1),(DépensesD_exploitation[[#This Row],[Période actuelle]]/DépensesD_exploitation[[#This Row],[Période précédente]])-1))),\"-\")","v":{"v":0,"d":"0.00%"}},{"$f":"IFERROR(IF(DépensesD_exploitation[[#This Row],[Budget]]=DépensesD_exploitation[[#This Row],[Période actuelle]],0,IF(DépensesD_exploitation[[#This Row],[Période actuelle]]>DépensesD_exploitation[[#This Row],[Budget]],ABS((DépensesD_exploitation[[#This Row],[Période actuelle]]/DépensesD_exploitation[[#This Row],[Budget]])-1),IF(AND(DépensesD_exploitation[[#This Row],[Période actuelle]]<DépensesD_exploitation[[#This Row],[Budget]],DépensesD_exploitation[[#This Row],[Budget]]<0),-((DépensesD_exploitation[[#This Row],[Période actuelle]]/DépensesD_exploitation[[#This Row],[Budget]])-1),(DépensesD_exploitation[[#This Row],[Période actuelle]]/DépensesD_exploitation[[#This Row],[Budget]])-1))),\"-\")","v":{"v":0,"d":"0.00%"}}]
[null,"Ventes et marketing","Autres dépenses (précisez)",{"$nulls":3},{"$f":"IFERROR(IF(Recettes_de_ventes=0,\"-\",DépensesD_exploitation[[#This Row],[Période actuelle]]/Recettes_de_ventes),\"-\")","v":"-"},{"$f":"IFERROR(IF(DépensesD_exploitation[[#This Row],[Période précédente]]=DépensesD_exploitation[[#This Row],[Période actuelle]],0,IF(DépensesD_exploitation[[#This Row],[Période actuelle]]>DépensesD_exploitation[[#This Row],[Période précédente]],ABS((DépensesD_exploitation[[#This Row],[Période actuelle]]/DépensesD_exploitation[[#This Row],[Période précédente]])-1),IF(AND(DépensesD_exploitation[[#This Row],[Période actuelle]]<DépensesD_exploitation[[#This Row],[Période précédente]],DépensesD_exploitation[[#This Row],[Période précédente]]<0),-((DépensesD_exploitation[[#This Row],[Période actuelle]]/DépensesD_exploitation[[#This Row],[Période précédente]])-1),(DépensesD_exploitation[[#This Row],[Période actuelle]]/DépensesD_exploitation[[#This Row],[Période précédente]])-1))),\"-\")","v":{"v":0,"d":"0.00%"}},{"$f":"IFERROR(IF(DépensesD_exploitation[[#This Row],[Budget]]=DépensesD_exploitation[[#This Row],[Période actuelle]],0,IF(DépensesD_exploitation[[#This Row],[Période actuelle]]>DépensesD_exploitation[[#This Row],[Budget]],ABS((DépensesD_exploitation[[#This Row],[Période actuelle]]/DépensesD_exploitation[[#This Row],[Budget]])-1),IF(AND(DépensesD_exploitation[[#This Row],[Période actuelle]]<DépensesD_exploitation[[#This Row],[Budget]],DépensesD_exploitation[[#This Row],[Budget]]<0),-((DépensesD_exploitation[[#This Row],[Période actuelle]]/DépensesD_exploitation[[#This Row],[Budget]])-1),(DépensesD_exploitation[[#This Row],[Période actuelle]]/DépensesD_exploitation[[#This Row],[Budget]])-1))),\"-\")","v":{"v":0,"d":"0.00%"}}]
[null,"Ventes et marketing","Autres dépenses (précisez)",{"$nulls":3},{"$f":"IFERROR(IF(Recettes_de_ventes=0,\"-\",DépensesD_exploitation[[#This Row],[Période actuelle]]/Recettes_de_ventes),\"-\")","v":"-"},{"$f":"IFERROR(IF(DépensesD_exploitation[[#This Row],[Période précédente]]=DépensesD_exploitation[[#This Row],[Période actuelle]],0,IF(DépensesD_exploitation[[#This Row],[Période actuelle]]>DépensesD_exploitation[[#This Row],[Période précédente]],ABS((DépensesD_exploitation[[#This Row],[Période actuelle]]/DépensesD_exploitation[[#This Row],[Période précédente]])-1),IF(AND(DépensesD_exploitation[[#This Row],[Période actuelle]]<DépensesD_exploitation[[#This Row],[Période précédente]],DépensesD_exploitation[[#This Row],[Période précédente]]<0),-((DépensesD_exploitation[[#This Row],[Période actuelle]]/DépensesD_exploitation[[#This Row],[Période précédente]])-1),(DépensesD_exploitation[[#This Row],[Période actuelle]]/DépensesD_exploitation[[#This Row],[Période précédente]])-1))),\"-\")","v":{"v":0,"d":"0.00%"}},{"$f":"IFERROR(IF(DépensesD_exploitation[[#This Row],[Budget]]=DépensesD_exploitation[[#This Row],[Période actuelle]],0,IF(DépensesD_exploitation[[#This Row],[Période actuelle]]>DépensesD_exploitation[[#This Row],[Budget]],ABS((DépensesD_exploitation[[#This Row],[Période actuelle]]/DépensesD_exploitation[[#This Row],[Budget]])-1),IF(AND(DépensesD_exploitation[[#This Row],[Période actuelle]]<DépensesD_exploitation[[#This Row],[Budget]],DépensesD_exploitation[[#This Row],[Budget]]<0),-((DépensesD_exploitation[[#This Row],[Période actuelle]]/DépensesD_exploitation[[#This Row],[Budget]])-1),(DépensesD_exploitation[[#This Row],[Période actuelle]]/DépensesD_exploitation[[#This Row],[Budget]])-1))),\"-\")","v":{"v":0,"d":"0.00%"}}]
[null,"Recherche et développement","Licences de technologie",{"$nulls":3},{"$f":"IFERROR(IF(Recettes_de_ventes=0,\"-\",DépensesD_exploitation[[#This Row],[Période actuelle]]/Recettes_de_ventes),\"-\")","v":"-"},{"$f":"IFERROR(IF(DépensesD_exploitation[[#This Row],[Période précédente]]=DépensesD_exploitation[[#This Row],[Période actuelle]],0,IF(DépensesD_exploitation[[#This Row],[Période actuelle]]>DépensesD_exploitation[[#This Row],[Période précédente]],ABS((DépensesD_exploitation[[#This Row],[Période actuelle]]/DépensesD_exploitation[[#This Row],[Période précédente]])-1),IF(AND(DépensesD_exploitation[[#This Row],[Période actuelle]]<DépensesD_exploitation[[#This Row],[Période précédente]],DépensesD_exploitation[[#This Row],[Période précédente]]<0),-((DépensesD_exploitation[[#This Row],[Période actuelle]]/DépensesD_exploitation[[#This Row],[Période précédente]])-1),(DépensesD_exploitation[[#This Row],[Période actuelle]]/DépensesD_exploitation[[#This Row],[Période précédente]])-1))),\"-\")","v":{"v":0,"d":"0.00%"}},{"$f":"IFERROR(IF(DépensesD_exploitation[[#This Row],[Budget]]=DépensesD_exploitation[[#This Row],[Période actuelle]],0,IF(DépensesD_exploitation[[#This Row],[Période actuelle]]>DépensesD_exploitation[[#This Row],[Budget]],ABS((DépensesD_exploitation[[#This Row],[Période actuelle]]/DépensesD_exploitation[[#This Row],[Budget]])-1),IF(AND(DépensesD_exploitation[[#This Row],[Période actuelle]]<DépensesD_exploitation[[#This Row],[Budget]],DépensesD_exploitation[[#This Row],[Budget]]<0),-((DépensesD_exploitation[[#This Row],[Période actuelle]]/DépensesD_exploitation[[#This Row],[Budget]])-1),(DépensesD_exploitation[[#This Row],[Période actuelle]]/DépensesD_exploitation[[#This Row],[Budget]])-1))),\"-\")","v":{"v":0,"d":"0.00%"}}]
[null,"Recherche et développement","Brevets ",{"$nulls":3},{"$f":"IFERROR(IF(Recettes_de_ventes=0,\"-\",DépensesD_exploitation[[#This Row],[Période actuelle]]/Recettes_de_ventes),\"-\")","v":"-"},{"$f":"IFERROR(IF(DépensesD_exploitation[[#This Row],[Période précédente]]=DépensesD_exploitation[[#This Row],[Période actuelle]],0,IF(DépensesD_exploitation[[#This Row],[Période actuelle]]>DépensesD_exploitation[[#This Row],[Période précédente]],ABS((DépensesD_exploitation[[#This Row],[Période actuelle]]/DépensesD_exploitation[[#This Row],[Période précédente]])-1),IF(AND(DépensesD_exploitation[[#This Row],[Période actuelle]]<DépensesD_exploitation[[#This Row],[Période précédente]],DépensesD_exploitation[[#This Row],[Période précédente]]<0),-((DépensesD_exploitation[[#This Row],[Période actuelle]]/DépensesD_exploitation[[#This Row],[Période précédente]])-1),(DépensesD_exploitation[[#This Row],[Période actuelle]]/DépensesD_exploitation[[#This Row],[Période précédente]])-1))),\"-\")","v":{"v":0,"d":"0.00%"}},{"$f":"IFERROR(IF(DépensesD_exploitation[[#This Row],[Budget]]=DépensesD_exploitation[[#This Row],[Période actuelle]],0,IF(DépensesD_exploitation[[#This Row],[Période actuelle]]>DépensesD_exploitation[[#This Row],[Budget]],ABS((DépensesD_exploitation[[#This Row],[Période actuelle]]/DépensesD_exploitation[[#This Row],[Budget]])-1),IF(AND(DépensesD_exploitation[[#This Row],[Période actuelle]]<DépensesD_exploitation[[#This Row],[Budget]],DépensesD_exploitation[[#This Row],[Budget]]<0),-((DépensesD_exploitation[[#This Row],[Période actuelle]]/DépensesD_exploitation[[#This Row],[Budget]])-1),(DépensesD_exploitation[[#This Row],[Période actuelle]]/DépensesD_exploitation[[#This Row],[Budget]])-1))),\"-\")","v":{"v":0,"d":"0.00%"}}]
[null,"Recherche et développement","Autres dépenses (précisez)",{"$nulls":3},{"$f":"IFERROR(IF(Recettes_de_ventes=0,\"-\",DépensesD_exploitation[[#This Row],[Période actuelle]]/Recettes_de_ventes),\"-\")","v":"-"},{"$f":"IFERROR(IF(DépensesD_exploitation[[#This Row],[Période précédente]]=DépensesD_exploitation[[#This Row],[Période actuelle]],0,IF(DépensesD_exploitation[[#This Row],[Période actuelle]]>DépensesD_exploitation[[#This Row],[Période précédente]],ABS((DépensesD_exploitation[[#This Row],[Période actuelle]]/DépensesD_exploitation[[#This Row],[Période précédente]])-1),IF(AND(DépensesD_exploitation[[#This Row],[Période actuelle]]<DépensesD_exploitation[[#This Row],[Période précédente]],DépensesD_exploitation[[#This Row],[Période précédente]]<0),-((DépensesD_exploitation[[#This Row],[Période actuelle]]/DépensesD_exploitation[[#This Row],[Période précédente]])-1),(DépensesD_exploitation[[#This Row],[Période actuelle]]/DépensesD_exploitation[[#This Row],[Période précédente]])-1))),\"-\")","v":{"v":0,"d":"0.00%"}},{"$f":"IFERROR(IF(DépensesD_exploitation[[#This Row],[Budget]]=DépensesD_exploitation[[#This Row],[Période actuelle]],0,IF(DépensesD_exploitation[[#This Row],[Période actuelle]]>DépensesD_exploitation[[#This Row],[Budget]],ABS((DépensesD_exploitation[[#This Row],[Période actuelle]]/DépensesD_exploitation[[#This Row],[Budget]])-1),IF(AND(DépensesD_exploitation[[#This Row],[Période actuelle]]<DépensesD_exploitation[[#This Row],[Budget]],DépensesD_exploitation[[#This Row],[Budget]]<0),-((DépensesD_exploitation[[#This Row],[Période actuelle]]/DépensesD_exploitation[[#This Row],[Budget]])-1),(DépensesD_exploitation[[#This Row],[Période actuelle]]/DépensesD_exploitation[[#This Row],[Budget]])-1))),\"-\")","v":{"v":0,"d":"0.00%"}}]
[null,"Recherche et développement","Autres dépenses (précisez)",{"$nulls":3},{"$f":"IFERROR(IF(Recettes_de_ventes=0,\"-\",DépensesD_exploitation[[#This Row],[Période actuelle]]/Recettes_de_ventes),\"-\")","v":"-"},{"$f":"IFERROR(IF(DépensesD_exploitation[[#This Row],[Période précédente]]=DépensesD_exploitation[[#This Row],[Période actuelle]],0,IF(DépensesD_exploitation[[#This Row],[Période actuelle]]>DépensesD_exploitation[[#This Row],[Période précédente]],ABS((DépensesD_exploitation[[#This Row],[Période actuelle]]/DépensesD_exploitation[[#This Row],[Période précédente]])-1),IF(AND(DépensesD_exploitation[[#This Row],[Période actuelle]]<DépensesD_exploitation[[#This Row],[Période précédente]],DépensesD_exploitation[[#This Row],[Période précédente]]<0),-((DépensesD_exploitation[[#This Row],[Période actuelle]]/DépensesD_exploitation[[#This Row],[Période précédente]])-1),(DépensesD_exploitation[[#This Row],[Période actuelle]]/DépensesD_exploitation[[#This Row],[Période précédente]])-1))),\"-\")","v":{"v":0,"d":"0.00%"}},{"$f":"IFERROR(IF(DépensesD_exploitation[[#This Row],[Budget]]=DépensesD_exploitation[[#This Row],[Période actuelle]],0,IF(DépensesD_exploitation[[#This Row],[Période actuelle]]>DépensesD_exploitation[[#This Row],[Budget]],ABS((DépensesD_exploitation[[#This Row],[Période actuelle]]/DépensesD_exploitation[[#This Row],[Budget]])-1),IF(AND(DépensesD_exploitation[[#This Row],[Période actuelle]]<DépensesD_exploitation[[#This Row],[Budget]],DépensesD_exploitation[[#This Row],[Budget]]<0),-((DépensesD_exploitation[[#This Row],[Période actuelle]]/DépensesD_exploitation[[#This Row],[Budget]])-1),(DépensesD_exploitation[[#This Row],[Période actuelle]]/DépensesD_exploitation[[#This Row],[Budget]])-1))),\"-\")","v":{"v":0,"d":"0.00%"}}]
[null,"Frais généraux et d’administration","Salaires et traitements",{"$nulls":3},{"$f":"IFERROR(IF(Recettes_de_ventes=0,\"-\",DépensesD_exploitation[[#This Row],[Période actuelle]]/Recettes_de_ventes),\"-\")","v":"-"},{"$f":"IFERROR(IF(DépensesD_exploitation[[#This Row],[Période précédente]]=DépensesD_exploitation[[#This Row],[Période actuelle]],0,IF(DépensesD_exploitation[[#This Row],[Période actuelle]]>DépensesD_exploitation[[#This Row],[Période précédente]],ABS((DépensesD_exploitation[[#This Row],[Période actuelle]]/DépensesD_exploitation[[#This Row],[Période précédente]])-1),IF(AND(DépensesD_exploitation[[#This Row],[Période actuelle]]<DépensesD_exploitation[[#This Row],[Période précédente]],DépensesD_exploitation[[#This Row],[Période précédente]]<0),-((DépensesD_exploitation[[#This Row],[Période actuelle]]/DépensesD_exploitation[[#This Row],[Période précédente]])-1),(DépensesD_exploitation[[#This Row],[Période actuelle]]/DépensesD_exploitation[[#This Row],[Période précédente]])-1))),\"-\")","v":{"v":0,"d":"0.00%"}},{"$f":"IFERROR(IF(DépensesD_exploitation[[#This Row],[Budget]]=DépensesD_exploitation[[#This Row],[Période actuelle]],0,IF(DépensesD_exploitation[[#This Row],[Période actuelle]]>DépensesD_exploitation[[#This Row],[Budget]],ABS((DépensesD_exploitation[[#This Row],[Période actuelle]]/DépensesD_exploitation[[#This Row],[Budget]])-1),IF(AND(DépensesD_exploitation[[#This Row],[Période actuelle]]<DépensesD_exploitation[[#This Row],[Budget]],DépensesD_exploitation[[#This Row],[Budget]]<0),-((DépensesD_exploitation[[#This Row],[Période actuelle]]/DépensesD_exploitation[[#This Row],[Budget]])-1),(DépensesD_exploitation[[#This Row],[Période actuelle]]/DépensesD_exploitation[[#This Row],[Budget]])-1))),\"-\")","v":{"v":0,"d":"0.00%"}}]
[null,"Frais généraux et d’administration","Services extérieurs",{"$nulls":3},{"$f":"IFERROR(IF(Recettes_de_ventes=0,\"-\",DépensesD_exploitation[[#This Row],[Période actuelle]]/Recettes_de_ventes),\"-\")","v":"-"},{"$f":"IFERROR(IF(DépensesD_exploitation[[#This Row],[Période précédente]]=DépensesD_exploitation[[#This Row],[Période actuelle]],0,IF(DépensesD_exploitation[[#This Row],[Période actuelle]]>DépensesD_exploitation[[#This Row],[Période précédente]],ABS((DépensesD_exploitation[[#This Row],[Période actuelle]]/DépensesD_exploitation[[#This Row],[Période précédente]])-1),IF(AND(DépensesD_exploitation[[#This Row],[Période actuelle]]<DépensesD_exploitation[[#This Row],[Période précédente]],DépensesD_exploitation[[#This Row],[Période précédente]]<0),-((DépensesD_exploitation[[#This Row],[Période actuelle]]/DépensesD_exploitation[[#This Row],[Période précédente]])-1),(DépensesD_exploitation[[#This Row],[Période actuelle]]/DépensesD_exploitation[[#This Row],[Période précédente]])-1))),\"-\")","v":{"v":0,"d":"0.00%"}},{"$f":"IFERROR(IF(DépensesD_exploitation[[#This Row],[Budget]]=DépensesD_exploitation[[#This Row],[Période actuelle]],0,IF(DépensesD_exploitation[[#This Row],[Période actuelle]]>DépensesD_exploitation[[#This Row],[Budget]],ABS((DépensesD_exploitation[[#This Row],[Période actuelle]]/DépensesD_exploitation[[#This Row],[Budget]])-1),IF(AND(DépensesD_exploitation[[#This Row],[Période actuelle]]<DépensesD_exploitation[[#This Row],[Budget]],DépensesD_exploitation[[#This Row],[Budget]]<0),-((DépensesD_exploitation[[#This Row],[Période actuelle]]/DépensesD_exploitation[[#This Row],[Budget]])-1),(DépensesD_exploitation[[#This Row],[Période actuelle]]/DépensesD_exploitation[[#This Row],[Budget]])-1))),\"-\")","v":{"v":0,"d":"0.00%"}}]
[null,"Frais généraux et d’administration","Approvisionnement",{"$nulls":3},{"$f":"IFERROR(IF(Recettes_de_ventes=0,\"-\",DépensesD_exploitation[[#This Row],[Période actuelle]]/Recettes_de_ventes),\"-\")","v":"-"},{"$f":"IFERROR(IF(DépensesD_exploitation[[#This Row],[Période précédente]]=DépensesD_exploitation[[#This Row],[Période actuelle]],0,IF(DépensesD_exploitation[[#This Row],[Période actuelle]]>DépensesD_exploitation[[#This Row],[Période précédente]],ABS((DépensesD_exploitation[[#This Row],[Période actuelle]]/DépensesD_exploitation[[#This Row],[Période précédente]])-1),IF(AND(DépensesD_exploitation[[#This Row],[Période actuelle]]<DépensesD_exploitation[[#This Row],[Période précédente]],DépensesD_exploitation[[#This Row],[Période précédente]]<0),-((DépensesD_exploitation[[#This Row],[Période actuelle]]/DépensesD_exploitation[[#This Row],[Période précédente]])-1),(DépensesD_exploitation[[#This Row],[Période actuelle]]/DépensesD_exploitation[[#This Row],[Période précédente]])-1))),\"-\")","v":{"v":0,"d":"0.00%"}},{"$f":"IFERROR(IF(DépensesD_exploitation[[#This Row],[Budget]]=DépensesD_exploitation[[#This Row],[Période actuelle]],0,IF(DépensesD_exploitation[[#This Row],[Période actuelle]]>DépensesD_exploitation[[#This Row],[Budget]],ABS((DépensesD_exploitation[[#This Row],[Période actuelle]]/DépensesD_exploitation[[#This Row],[Budget]])-1),IF(AND(DépensesD_exploitation[[#This Row],[Période actuelle]]<DépensesD_exploitation[[#This Row],[Budget]],DépensesD_exploitation[[#This Row],[Budget]]<0),-((DépensesD_exploitation[[#This Row],[Période actuelle]]/DépensesD_exploitation[[#This Row],[Budget]])-1),(DépensesD_exploitation[[#This Row],[Période actuelle]]/DépensesD_exploitation[[#This Row],[Budget]])-1))),\"-\")","v":{"v":0,"d":"0.00%"}}]
[null,"Frais généraux et d’administration","Repas et loisirs",{"$nulls":3},{"$f":"IFERROR(IF(Recettes_de_ventes=0,\"-\",DépensesD_exploitation[[#This Row],[Période actuelle]]/Recettes_de_ventes),\"-\")","v":"-"},{"$f":"IFERROR(IF(DépensesD_exploitation[[#This Row],[Période précédente]]=DépensesD_exploitation[[#This Row],[Période actuelle]],0,IF(DépensesD_exploitation[[#This Row],[Période actuelle]]>DépensesD_exploitation[[#This Row],[Période précédente]],ABS((DépensesD_exploitation[[#This Row],[Période actuelle]]/DépensesD_exploitation[[#This Row],[Période précédente]])-1),IF(AND(DépensesD_exploitation[[#This Row],[Période actuelle]]<DépensesD_exploitation[[#This Row],[Période précédente]],DépensesD_exploitation[[#This Row],[Période précédente]]<0),-((DépensesD_exploitation[[#This Row],[Période actuelle]]/DépensesD_exploitation[[#This Row],[Période précédente]])-1),(DépensesD_exploitation[[#This Row],[Période actuelle]]/DépensesD_exploitation[[#This Row],[Période précédente]])-1))),\"-\")","v":{"v":0,"d":"0.00%"}},{"$f":"IFERROR(IF(DépensesD_exploitation[[#This Row],[Budget]]=DépensesD_exploitation[[#This Row],[Période actuelle]],0,IF(DépensesD_exploitation[[#This Row],[Période actuelle]]>DépensesD_exploitation[[#This Row],[Budget]],ABS((DépensesD_exploitation[[#This Row],[Période actuelle]]/DépensesD_exploitation[[#This Row],[Budget]])-1),IF(AND(DépensesD_exploitation[[#This Row],[Période actuelle]]<DépensesD_exploitation[[#This Row],[Budget]],DépensesD_exploitation[[#This Row],[Budget]]<0),-((DépensesD_exploitation[[#This Row],[Période actuelle]]/DépensesD_exploitation[[#This Row],[Budget]])-1),(DépensesD_exploitation[[#This Row],[Période actuelle]]/DépensesD_exploitation[[#This Row],[Budget]])-1))),\"-\")","v":{"v":0,"d":"0.00%"}}]
[null,"Frais généraux et d’administration","Loyer",{"$nulls":3},{"$f":"IFERROR(IF(Recettes_de_ventes=0,\"-\",DépensesD_exploitation[[#This Row],[Période actuelle]]/Recettes_de_ventes),\"-\")","v":"-"},{"$f":"IFERROR(IF(DépensesD_exploitation[[#This Row],[Période précédente]]=DépensesD_exploitation[[#This Row],[Période actuelle]],0,IF(DépensesD_exploitation[[#This Row],[Période actuelle]]>DépensesD_exploitation[[#This Row],[Période précédente]],ABS((DépensesD_exploitation[[#This Row],[Période actuelle]]/DépensesD_exploitation[[#This Row],[Période précédente]])-1),IF(AND(DépensesD_exploitation[[#This Row],[Période actuelle]]<DépensesD_exploitation[[#This Row],[Période précédente]],DépensesD_exploitation[[#This Row],[Période précédente]]<0),-((DépensesD_exploitation[[#This Row],[Période actuelle]]/DépensesD_exploitation[[#This Row],[Période précédente]])-1),(DépensesD_exploitation[[#This Row],[Période actuelle]]/DépensesD_exploitation[[#This Row],[Période précédente]])-1))),\"-\")","v":{"v":0,"d":"0.00%"}},{"$f":"IFERROR(IF(DépensesD_exploitation[[#This Row],[Budget]]=DépensesD_exploitation[[#This Row],[Période actuelle]],0,IF(DépensesD_exploitation[[#This Row],[Période actuelle]]>DépensesD_exploitation[[#This Row],[Budget]],ABS((DépensesD_exploitation[[#This Row],[Période actuelle]]/DépensesD_exploitation[[#This Row],[Budget]])-1),IF(AND(DépensesD_exploitation[[#This Row],[Période actuelle]]<DépensesD_exploitation[[#This Row],[Budget]],DépensesD_exploitation[[#This Row],[Budget]]<0),-((DépensesD_exploitation[[#This Row],[Période actuelle]]/DépensesD_exploitation[[#This Row],[Budget]])-1),(DépensesD_exploitation[[#This Row],[Période actuelle]]/DépensesD_exploitation[[#This Row],[Budget]])-1))),\"-\")","v":{"v":0,"d":"0.00%"}}]
[null,"Frais généraux et d’administration","Téléphone",{"$nulls":3},{"$f":"IFERROR(IF(Recettes_de_ventes=0,\"-\",DépensesD_exploitation[[#This Row],[Période actuelle]]/Recettes_de_ventes),\"-\")","v":"-"},{"$f":"IFERROR(IF(DépensesD_exploitation[[#This Row],[Période précédente]]=DépensesD_exploitation[[#This Row],[Période actuelle]],0,IF(DépensesD_exploitation[[#This Row],[Période actuelle]]>DépensesD_exploitation[[#This Row],[Période précédente]],ABS((DépensesD_exploitation[[#This Row],[Période actuelle]]/DépensesD_exploitation[[#This Row],[Période précédente]])-1),IF(AND(DépensesD_exploitation[[#This Row],[Période actuelle]]<DépensesD_exploitation[[#This Row],[Période précédente]],DépensesD_exploitation[[#This Row],[Période précédente]]<0),-((DépensesD_exploitation[[#This Row],[Période actuelle]]/DépensesD_exploitation[[#This Row],[Période précédente]])-1),(DépensesD_exploitation[[#This Row],[Période actuelle]]/DépensesD_exploitation[[#This Row],[Période précédente]])-1))),\"-\")","v":{"v":0,"d":"0.00%"}},{"$f":"IFERROR(IF(DépensesD_exploitation[[#This Row],[Budget]]=DépensesD_exploitation[[#This Row],[Période actuelle]],0,IF(DépensesD_exploitation[[#This Row],[Période actuelle]]>DépensesD_exploitation[[#This Row],[Budget]],ABS((DépensesD_exploitation[[#This Row],[Période actuelle]]/DépensesD_exploitation[[#This Row],[Budget]])-1),IF(AND(DépensesD_exploitation[[#This Row],[Période actuelle]]<DépensesD_exploitation[[#This Row],[Budget]],DépensesD_exploitation[[#This Row],[Budget]]<0),-((DépensesD_exploitation[[#This Row],[Période actuelle]]/DépensesD_exploitation[[#This Row],[Budget]])-1),(DépensesD_exploitation[[#This Row],[Période actuelle]]/DépensesD_exploitation[[#This Row],[Budget]])-1))),\"-\")","v":{"v":0,"d":"0.00%"}}]
[null,"Frais généraux et d’administration","Charges",{"$nulls":3},{"$f":"IFERROR(IF(Recettes_de_ventes=0,\"-\",DépensesD_exploitation[[#This Row],[Période actuelle]]/Recettes_de_ventes),\"-\")","v":"-"},{"$f":"IFERROR(IF(DépensesD_exploitation[[#This Row],[Période précédente]]=DépensesD_exploitation[[#This Row],[Période actuelle]],0,IF(DépensesD_exploitation[[#This Row],[Période actuelle]]>DépensesD_exploitation[[#This Row],[Période précédente]],ABS((DépensesD_exploitation[[#This Row],[Période actuelle]]/DépensesD_exploitation[[#This Row],[Période précédente]])-1),IF(AND(DépensesD_exploitation[[#This Row],[Période actuelle]]<DépensesD_exploitation[[#This Row],[Période précédente]],DépensesD_exploitation[[#This Row],[Période précédente]]<0),-((DépensesD_exploitation[[#This Row],[Période actuelle]]/DépensesD_exploitation[[#This Row],[Période précédente]])-1),(DépensesD_exploitation[[#This Row],[Période actuelle]]/DépensesD_exploitation[[#This Row],[Période précédente]])-1))),\"-\")","v":{"v":0,"d":"0.00%"}},{"$f":"IFERROR(IF(DépensesD_exploitation[[#This Row],[Budget]]=DépensesD_exploitation[[#This Row],[Période actuelle]],0,IF(DépensesD_exploitation[[#This Row],[Période actuelle]]>DépensesD_exploitation[[#This Row],[Budget]],ABS((DépensesD_exploitation[[#This Row],[Période actuelle]]/DépensesD_exploitation[[#This Row],[Budget]])-1),IF(AND(DépensesD_exploitation[[#This Row],[Période actuelle]]<DépensesD_exploitation[[#This Row],[Budget]],DépensesD_exploitation[[#This Row],[Budget]]<0),-((DépensesD_exploitation[[#This Row],[Période actuelle]]/DépensesD_exploitation[[#This Row],[Budget]])-1),(DépensesD_exploitation[[#This Row],[Période actuelle]]/DépensesD_exploitation[[#This Row],[Budget]])-1))),\"-\")","v":{"v":0,"d":"0.00%"}}]
[null,"Frais généraux et d’administration","Amortissement",{"$nulls":3},{"$f":"IFERROR(IF(Recettes_de_ventes=0,\"-\",DépensesD_exploitation[[#This Row],[Période actuelle]]/Recettes_de_ventes),\"-\")","v":"-"},{"$f":"IFERROR(IF(DépensesD_exploitation[[#This Row],[Période précédente]]=DépensesD_exploitation[[#This Row],[Période actuelle]],0,IF(DépensesD_exploitation[[#This Row],[Période actuelle]]>DépensesD_exploitation[[#This Row],[Période précédente]],ABS((DépensesD_exploitation[[#This Row],[Période actuelle]]/DépensesD_exploitation[[#This Row],[Période précédente]])-1),IF(AND(DépensesD_exploitation[[#This Row],[Période actuelle]]<DépensesD_exploitation[[#This Row],[Période précédente]],DépensesD_exploitation[[#This Row],[Période précédente]]<0),-((DépensesD_exploitation[[#This Row],[Période actuelle]]/DépensesD_exploitation[[#This Row],[Période précédente]])-1),(DépensesD_exploitation[[#This Row],[Période actuelle]]/DépensesD_exploitation[[#This Row],[Période précédente]])-1))),\"-\")","v":{"v":0,"d":"0.00%"}},{"$f":"IFERROR(IF(DépensesD_exploitation[[#This Row],[Budget]]=DépensesD_exploitation[[#This Row],[Période actuelle]],0,IF(DépensesD_exploitation[[#This Row],[Période actuelle]]>DépensesD_exploitation[[#This Row],[Budget]],ABS((DépensesD_exploitation[[#This Row],[Période actuelle]]/DépensesD_exploitation[[#This Row],[Budget]])-1),IF(AND(DépensesD_exploitation[[#This Row],[Période actuelle]]<DépensesD_exploitation[[#This Row],[Budget]],DépensesD_exploitation[[#This Row],[Budget]]<0),-((DépensesD_exploitation[[#This Row],[Période actuelle]]/DépensesD_exploitation[[#This Row],[Budget]])-1),(DépensesD_exploitation[[#This Row],[Période actuelle]]/DépensesD_exploitation[[#This Row],[Budget]])-1))),\"-\")","v":{"v":0,"d":"0.00%"}}]
[null,"Frais généraux et d’administration","Assurance",{"$nulls":3},{"$f":"IFERROR(IF(Recettes_de_ventes=0,\"-\",DépensesD_exploitation[[#This Row],[Période actuelle]]/Recettes_de_ventes),\"-\")","v":"-"},{"$f":"IFERROR(IF(DépensesD_exploitation[[#This Row],[Période précédente]]=DépensesD_exploitation[[#This Row],[Période actuelle]],0,IF(DépensesD_exploitation[[#This Row],[Période actuelle]]>DépensesD_exploitation[[#This Row],[Période précédente]],ABS((DépensesD_exploitation[[#This Row],[Période actuelle]]/DépensesD_exploitation[[#This Row],[Période précédente]])-1),IF(AND(DépensesD_exploitation[[#This Row],[Période actuelle]]<DépensesD_exploitation[[#This Row],[Période précédente]],DépensesD_exploitation[[#This Row],[Période précédente]]<0),-((DépensesD_exploitation[[#This Row],[Période actuelle]]/DépensesD_exploitation[[#This Row],[Période précédente]])-1),(DépensesD_exploitation[[#This Row],[Période actuelle]]/DépensesD_exploitation[[#This Row],[Période précédente]])-1))),\"-\")","v":{"v":0,"d":"0.00%"}},{"$f":"IFERROR(IF(DépensesD_exploitation[[#This Row],[Budget]]=DépensesD_exploitation[[#This Row],[Période actuelle]],0,IF(DépensesD_exploitation[[#This Row],[Période actuelle]]>DépensesD_exploitation[[#This Row],[Budget]],ABS((DépensesD_exploitation[[#This Row],[Période actuelle]]/DépensesD_exploitation[[#This Row],[Budget]])-1),IF(AND(DépensesD_exploitation[[#This Row],[Période actuelle]]<DépensesD_exploitation[[#This Row],[Budget]],DépensesD_exploitation[[#This Row],[Budget]]<0),-((DépensesD_exploitation[[#This Row],[Période actuelle]]/DépensesD_exploitation[[#This Row],[Budget]])-1),(DépensesD_exploitation[[#This Row],[Période actuelle]]/DépensesD_exploitation[[#This Row],[Budget]])-1))),\"-\")","v":{"v":0,"d":"0.00%"}}]
[null,"Frais généraux et d’administration","Réparations et entretien",{"$nulls":3},{"$f":"IFERROR(IF(Recettes_de_ventes=0,\"-\",DépensesD_exploitation[[#This Row],[Période actuelle]]/Recettes_de_ventes),\"-\")","v":"-"},{"$f":"IFERROR(IF(DépensesD_exploitation[[#This Row],[Période précédente]]=DépensesD_exploitation[[#This Row],[Période actuelle]],0,IF(DépensesD_exploitation[[#This Row],[Période actuelle]]>DépensesD_exploitation[[#This Row],[Période précédente]],ABS((DépensesD_exploitation[[#This Row],[Période actuelle]]/DépensesD_exploitation[[#This Row],[Période précédente]])-1),IF(AND(DépensesD_exploitation[[#This Row],[Période actuelle]]<DépensesD_exploitation[[#This Row],[Période précédente]],DépensesD_exploitation[[#This Row],[Période précédente]]<0),-((DépensesD_exploitation[[#This Row],[Période actuelle]]/DépensesD_exploitation[[#This Row],[Période précédente]])-1),(DépensesD_exploitation[[#This Row],[Période actuelle]]/DépensesD_exploitation[[#This Row],[Période précédente]])-1))),\"-\")","v":{"v":0,"d":"0.00%"}},{"$f":"IFERROR(IF(DépensesD_exploitation[[#This Row],[Budget]]=DépensesD_exploitation[[#This Row],[Période actuelle]],0,IF(DépensesD_exploitation[[#This Row],[Période actuelle]]>DépensesD_exploitation[[#This Row],[Budget]],ABS((DépensesD_exploitation[[#This Row],[Période actuelle]]/DépensesD_exploitation[[#This Row],[Budget]])-1),IF(AND(DépensesD_exploitation[[#This Row],[Période actuelle]]<DépensesD_exploitation[[#This Row],[Budget]],DépensesD_exploitation[[#This Row],[Budget]]<0),-((DépensesD_exploitation[[#This Row],[Période actuelle]]/DépensesD_exploitation[[#This Row],[Budget]])-1),(DépensesD_exploitation[[#This Row],[Période actuelle]]/DépensesD_exploitation[[#This Row],[Budget]])-1))),\"-\")","v":{"v":0,"d":"0.00%"}}]
[null,"Frais généraux et d’administration","Autres dépenses (précisez)",{"$nulls":3},{"$f":"IFERROR(IF(Recettes_de_ventes=0,\"-\",DépensesD_exploitation[[#This Row],[Période actuelle]]/Recettes_de_ventes),\"-\")","v":"-"},{"$f":"IFERROR(IF(DépensesD_exploitation[[#This Row],[Période précédente]]=DépensesD_exploitation[[#This Row],[Période actuelle]],0,IF(DépensesD_exploitation[[#This Row],[Période actuelle]]>DépensesD_exploitation[[#This Row],[Période précédente]],ABS((DépensesD_exploitation[[#This Row],[Période actuelle]]/DépensesD_exploitation[[#This Row],[Période précédente]])-1),IF(AND(DépensesD_exploitation[[#This Row],[Période actuelle]]<DépensesD_exploitation[[#This Row],[Période précédente]],DépensesD_exploitation[[#This Row],[Période précédente]]<0),-((DépensesD_exploitation[[#This Row],[Période actuelle]]/DépensesD_exploitation[[#This Row],[Période précédente]])-1),(DépensesD_exploitation[[#This Row],[Période actuelle]]/DépensesD_exploitation[[#This Row],[Période précédente]])-1))),\"-\")","v":{"v":0,"d":"0.00%"}},{"$f":"IFERROR(IF(DépensesD_exploitation[[#This Row],[Budget]]=DépensesD_exploitation[[#This Row],[Période actuelle]],0,IF(DépensesD_exploitation[[#This Row],[Période actuelle]]>DépensesD_exploitation[[#This Row],[Budget]],ABS((DépensesD_exploitation[[#This Row],[Période actuelle]]/DépensesD_exploitation[[#This Row],[Budget]])-1),IF(AND(DépensesD_exploitation[[#This Row],[Période actuelle]]<DépensesD_exploitation[[#This Row],[Budget]],DépensesD_exploitation[[#This Row],[Budget]]<0),-((DépensesD_exploitation[[#This Row],[Période actuelle]]/DépensesD_exploitation[[#This Row],[Budget]])-1),(DépensesD_exploitation[[#This Row],[Période actuelle]]/DépensesD_exploitation[[#This Row],[Budget]])-1))),\"-\")","v":{"v":0,"d":"0.00%"}}]
[null,"Frais généraux et d’administration","Autres dépenses (précisez)",{"$nulls":3},{"$f":"IFERROR(IF(Recettes_de_ventes=0,\"-\",DépensesD_exploitation[[#This Row],[Période actuelle]]/Recettes_de_ventes),\"-\")","v":"-"},{"$f":"IFERROR(IF(DépensesD_exploitation[[#This Row],[Période précédente]]=DépensesD_exploitation[[#This Row],[Période actuelle]],0,IF(DépensesD_exploitation[[#This Row],[Période actuelle]]>DépensesD_exploitation[[#This Row],[Période précédente]],ABS((DépensesD_exploitation[[#This Row],[Période actuelle]]/DépensesD_exploitation[[#This Row],[Période précédente]])-1),IF(AND(DépensesD_exploitation[[#This Row],[Période actuelle]]<DépensesD_exploitation[[#This Row],[Période précédente]],DépensesD_exploitation[[#This Row],[Période précédente]]<0),-((DépensesD_exploitation[[#This Row],[Période actuelle]]/DépensesD_exploitation[[#This Row],[Période précédente]])-1),(DépensesD_exploitation[[#This Row],[Période actuelle]]/DépensesD_exploitation[[#This Row],[Période précédente]])-1))),\"-\")","v":{"v":0,"d":"0.00%"}},{"$f":"IFERROR(IF(DépensesD_exploitation[[#This Row],[Budget]]=DépensesD_exploitation[[#This Row],[Période actuelle]],0,IF(DépensesD_exploitation[[#This Row],[Période actuelle]]>DépensesD_exploitation[[#This Row],[Budget]],ABS((DépensesD_exploitation[[#This Row],[Période actuelle]]/DépensesD_exploitation[[#This Row],[Budget]])-1),IF(AND(DépensesD_exploitation[[#This Row],[Période actuelle]]<DépensesD_exploitation[[#This Row],[Budget]],DépensesD_exploitation[[#This Row],[Budget]]<0),-((DépensesD_exploitation[[#This Row],[Période actuelle]]/DépensesD_exploitation[[#This Row],[Budget]])-1),(DépensesD_exploitation[[#This Row],[Période actuelle]]/DépensesD_exploitation[[#This Row],[Budget]])-1))),\"-\")","v":{"v":0,"d":"0.00%"}}]
[null,"Total des charges d’exploitation",null,{"$f":"SUBTOTAL(109,DépensesD_exploitation[Période précédente])","v":0},{"$f":"SUBTOTAL(109,DépensesD_exploitation[Budget])","v":0},{"$f":"SUBTOTAL(109,DépensesD_exploitation[Période actuelle])","v":0},{"$f":"SUBTOTAL(109,DépensesD_exploitation[Période actuelle en pourcentage des ventes])","v":{"v":0,"d":"0.00%"}},{"$f":"SUBTOTAL(109,DépensesD_exploitation[Pourcentage de changement par rapport à la période précédente])","v":{"v":0,"d":"0.00%"}},{"$f":"SUBTOTAL(109,DépensesD_exploitation[Pourcentage de changement par rapport au budget])","v":{"v":0,"d":"0.00%"}}]

{"sheet":"Taxes","index":4,"n_rows":10,"n_cols":9,"rows_kept":10,"merged":[[0,7,2,8]]}
[null,{"$f":"Classeur_Titre","v":"Compte de résultat"}]
[null,{"$f":"Nom_de_la_société","v":"Nom de la société"},"Exprimé en milliers"]
[null,"Taxes",{"$f":"IFERROR(Taxes[[#Totals],[Période actuelle]],\"-\")","v":0}]
[null,"Type","Description","Période précédente","Budget","Période actuelle","Période actuelle en pourcentage des ventes","Pourcentage de changement par rapport à la période précédente","Pourcentage de changement par rapport au budget"]
[null,"Taxes","Impôts sur le revenu",{"$nulls":3},{"$f":"IFERROR(IF(Recettes_de_ventes=0,\"-\",Taxes[[#This Row],[Période actuelle]]/Recettes_de_ventes),\"-\")","v":"-"},{"$f":"IFERROR(IF(Taxes[[#This Row],[Période précédente]]=Taxes[[#This Row],[Période actuelle]],0,IF(Taxes[[#This Row],[Période actuelle]]>Taxes[[#This Row],[Période précédente]],ABS((Taxes[[#This Row],[Période actuelle]]/Taxes[[#This Row],[Période précédente]])-1),IF(AND(Taxes[[#This Row],[Période actuelle]]<Taxes[[#This Row],[Période précédente]],Taxes[[#This Row],[Période précédente]]<0),-((Taxes[[#This Row],[Période actuelle]]/Taxes[[#This Row],[Période précédente]])-1),(Taxes[[#This Row],[Période actuelle]]/Taxes[[#This Row],[Période précédente]])-1))),\"-\")","v":{"v":0,"d":"0.00%"}},{"$f":"IFERROR(IF(Taxes[[#This Row],[Budget]]=Taxes[[#This Row],[Période actuelle]],0,IF(Taxes[[#This Row],[Période actuelle]]>Taxes[[#This Row],[Budget]],ABS((Taxes[[#This Row],[Période actuelle]]/Taxes[[#This Row],[Budget]])-1),IF(AND(Taxes[[#This Row],[Période actuelle]]<Taxes[[#This Row],[Budget]],Taxes[[#This Row],[Budget]]<0),-((Taxes[[#This Row],[Période actuelle]]/Taxes[[#This Row],[Budget]])-1),(Taxes[[#This Row],[Période actuelle]]/Taxes[[#This Row],[Budget]])-1))),\"-\")","v":{"v":0,"d":"0.00%"}}]
[null,"Taxes","Impôts sur les salaires",{"$nulls":3},{"$f":"IFERROR(IF(Recettes_de_ventes=0,\"-\",Taxes[[#This Row],[Période actuelle]]/Recettes_de_ventes),\"-\")","v":"-"},{"$f":"IFERROR(IF(Taxes[[#This Row],[Période précédente]]=Taxes[[#This Row],[Période actuelle]],0,IF(Taxes[[#This Row],[Période actuelle]]>Taxes[[#This Row],[Période précédente]],ABS((Taxes[[#This Row],[Période actuelle]]/Taxes[[#This Row],[Période précédente]])-1),IF(AND(Taxes[[#This Row],[Période actuelle]]<Taxes[[#This Row],[Période précédente]],Taxes[[#This Row],[Période précédente]]<0),-((Taxes[[#This Row],[Période actuelle]]/Taxes[[#This Row],[Période précédente]])-1),(Taxes[[#This Row],[Période actuelle]]/Taxes[[#This Row],[Période précédente]])-1))),\"-\")","v":{"v":0,"d":"0.00%"}},{"$f":"IFERROR(IF(Taxes[[#This Row],[Budget]]=Taxes[[#This Row],[Période actuelle]],0,IF(Taxes[[#This Row],[Période actuelle]]>Taxes[[#This Row],[Budget]],ABS((Taxes[[#This Row],[Période actuelle]]/Taxes[[#This Row],[Budget]])-1),IF(AND(Taxes[[#This Row],[Période actuelle]]<Taxes[[#This Row],[Budget]],Taxes[[#This Row],[Budget]]<0),-((Taxes[[#This Row],[Période actuelle]]/Taxes[[#This Row],[Budget]])-1),(Taxes[[#This Row],[Période actuelle]]/Taxes[[#This Row],[Budget]])-1))),\"-\")","v":{"v":0,"d":"0.00%"}}]
[null,"Taxes","Taxes foncières",{"$nulls":3},{"$f":"IFERROR(IF(Recettes_de_ventes=0,\"-\",Taxes[[#This Row],[Période actuelle]]/Recettes_de_ventes),\"-\")","v":"-"},{"$f":"IFERROR(IF(Taxes[[#This Row],[Période précédente]]=Taxes[[#This Row],[Période actuelle]],0,IF(Taxes[[#This Row],[Période actuelle]]>Taxes[[#This Row],[Période précédente]],ABS((Taxes[[#This Row],[Période actuelle]]/Taxes[[#This Row],[Période précédente]])-1),IF(AND(Taxes[[#This Row],[Période actuelle]]<Taxes[[#This Row],[Période précédente]],Taxes[[#This Row],[Période précédente]]<0),-((Taxes[[#This Row],[Période actuelle]]/Taxes[[#This Row],[Période précédente]])-1),(Taxes[[#This Row],[Période actuelle]]/Taxes[[#This Row],[Période précédente]])-1))),\"-\")","v":{"v":0,"d":"0.00%"}},{"$f":"IFERROR(IF(Taxes[[#This Row],[Budget]]=Taxes[[#This Row],[Période actuelle]],0,IF(Taxes[[#This Row],[Période actuelle]]>Taxes[[#This Row],[Budget]],ABS((Taxes[[#This Row],[Période actuelle]]/Taxes[[#This Row],[Budget]])-1),IF(AND(Taxes[[#This Row],[Période actuelle]]<Taxes[[#This Row],[Budget]],Taxes[[#This Row],[Budget]]<0),-((Taxes[[#This Row],[Période actuelle]]/Taxes[[#This Row],[Budget]])-1),(Taxes[[#This Row],[Période actuelle]]/Taxes[[#This Row],[Budget]])-1))),\"-\")","v":{"v":0,"d":"0.00%"}}]
[null,"Taxes","Autres taxes (spécifier)",{"$nulls":3},{"$f":"IFERROR(IF(Recettes_de_ventes=0,\"-\",Taxes[[#This Row],[Période actuelle]]/Recettes_de_ventes),\"-\")","v":"-"},{"$f":"IFERROR(IF(Taxes[[#This Row],[Période précédente]]=Taxes[[#This Row],[Période actuelle]],0,IF(Taxes[[#This Row],[Période actuelle]]>Taxes[[#This Row],[Période précédente]],ABS((Taxes[[#This Row],[Période actuelle]]/Taxes[[#This Row],[Période précédente]])-1),IF(AND(Taxes[[#This Row],[Période actuelle]]<Taxes[[#This Row],[Période précédente]],Taxes[[#This Row],[Période précédente]]<0),-((Taxes[[#This Row],[Période actuelle]]/Taxes[[#This Row],[Période précédente]])-1),(Taxes[[#This Row],[Période actuelle]]/Taxes[[#This Row],[Période précédente]])-1))),\"-\")","v":{"v":0,"d":"0.00%"}},{"$f":"IFERROR(IF(Taxes[[#This Row],[Budget]]=Taxes[[#This Row],[Période actuelle]],0,IF(Taxes[[#This Row],[Période actuelle]]>Taxes[[#This Row],[Budget]],ABS((Taxes[[#This Row],[Période actuelle]]/Taxes[[#This Row],[Budget]])-1),IF(AND(Taxes[[#This Row],[Période actuelle]]<Taxes[[#This Row],[Budget]],Taxes[[#This Row],[Budget]]<0),-((Taxes[[#This Row],[Période actuelle]]/Taxes[[#This Row],[Budget]])-1),(Taxes[[#This Row],[Période actuelle]]/Taxes[[#This Row],[Budget]])-1))),\"-\")","v":{"v":0,"d":"0.00%"}}]
[null,"Taxes","Autres taxes (spécifier)",{"$nulls":3},{"$f":"IFERROR(IF(Recettes_de_ventes=0,\"-\",Taxes[[#This Row],[Période actuelle]]/Recettes_de_ventes),\"-\")","v":"-"},{"$f":"IFERROR(IF(Taxes[[#This Row],[Période précédente]]=Taxes[[#This Row],[Période actuelle]],0,IF(Taxes[[#This Row],[Période actuelle]]>Taxes[[#This Row],[Période précédente]],ABS((Taxes[[#This Row],[Période actuelle]]/Taxes[[#This Row],[Période précédente]])-1),IF(AND(Taxes[[#This Row],[Période actuelle]]<Taxes[[#This Row],[Période précédente]],Taxes[[#This Row],[Période précédente]]<0),-((Taxes[[#This Row],[Période actuelle]]/Taxes[[#This Row],[Période précédente]])-1),(Taxes[[#This Row],[Période actuelle]]/Taxes[[#This Row],[Période précédente]])-1))),\"-\")","v":{"v":0,"d":"0.00%"}},{"$f":"IFERROR(IF(Taxes[[#This Row],[Budget]]=Taxes[[#This Row],[Période actuelle]],0,IF(Taxes[[#This Row],[Période actuelle]]>Taxes[[#This Row],[Budget]],ABS((Taxes[[#This Row],[Période actuelle]]/Taxes[[#This Row],[Budget]])-1),IF(AND(Taxes[[#This Row],[Période actuelle]]<Taxes[[#This Row],[Budget]],Taxes[[#This Row],[Budget]]<0),-((Taxes[[#This Row],[Période actuelle]]/Taxes[[#This Row],[Budget]])-1),(Taxes[[#This Row],[Période actuelle]]/Taxes[[#This Row],[Budget]])-1))),\"-\")","v":{"v":0,"d":"0.00%"}}]
[null,"Total des taxes",null,{"$f":"SUBTOTAL(109,Taxes[Période précédente])","v":0},{"$f":"SUBTOTAL(109,Taxes[Budget])","v":0},{"$f":"SUBTOTAL(109,Taxes[Période actuelle])","v":0},{"$f":"IFERROR(SUBTOTAL(109,Taxes[Période actuelle en pourcentage des ventes]),\"-\")","v":{"v":0,"d":"0.00%"}},{"$f":"SUBTOTAL(109,Taxes[Pourcentage de changement par rapport à la période précédente])","v":{"v":0,"d":"0.00%"}},{"$f":"SUBTOTAL(109,Taxes[Pourcentage de changement par rapport au budget])","v":{"v":0,"d":"0.00%"}}]

{"sheet":"Catégories","index":5,"n_rows":8,"n_cols":2,"rows_kept":8}
[null,"Catégories"]
[null,"Recettes de ventes"]
[null,"Coût des ventes"]
[null,"Revenu"]
[null,"Ventes et marketing"]
[null,"Recherche et développement"]
[null,"Frais généraux et d’administration"]
[null,"Taxes"]